Cogmind - Beta 9.3 @@@ ROGUE MODE // 2019.12.24 @ 15:31:44 // Winter2019/RPGLIKE Player: Musaab Result: Destroyed self with Grenade Launcher Performance ------------- Evolutions (1) 500 Regions Visited (3) 600 Robots Destroyed (16) 80 Value Destroyed (431) 431 Prototype IDs (2) 40 Alien Tech Used (0) 0 Bonus (0) 0 TOTAL SCORE: 1651 Bonus ------- None Cogmind --------- Core Integrity 0/600 Matter 110/300 Energy 250/250 System Corruption 0% Temperature Cool (0) Movement Treading (160) Location -9/Materials Parts ------- > --- POWER (1) -------- Ion Engine > --- PROPULSION (1) --- Light Treads > --- UTILITY (1) ------ Light Armor Plating > --- WEAPON (1) ------- Grenade Launcher > --- INVENTORY (0) ---- (None) Peak State ------------ > --- POWER ------------ Light Ion Engine > --- PROPULSION ------- Light Treads > --- UTILITY ---------- Heat Sink > --- WEAPON ----------- Assault Rifle > --- INVENTORY -------- (None) [Rating: 4] Favorites ----------- Power Ion Engine Engine Ion Engine Propulsion Light Treads Treads Light Treads Utility Heat Sink Device Heat Sink Protection Light Armor Plating Weapon Grenade Launcher Ballistic Gun Assault Rifle Launcher Grenade Launcher Build | -11 -10 -10 -9 ------- Run | Scr Mat Min Mat Slots Evolved . | . . . . Power . | . . . . Propulsion . | . . . . Utility . | . . . . Weapon . | . . . . Parts Attached 8 | 3 4 . 1 Power 2 | 1 1 . . Engine 2 | 1 1 . . Core . | . . . . Reactor . | . . . . Propulsion 1 | 1 . . . Treads 1 | 1 . . . Leg . | . . . . Wheel . | . . . . Hover . | . . . . Flight . | . . . . Utility 2 | . 1 . 1 Device 1 | . 1 . . Storage . | . . . . Processor . | . . . . Hackware . | . . . . Protection 1 | . . . 1 Artifact . | . . . . Weapon 3 | 1 2 . . Energy Gun . | . . . . Energy Cannon . | . . . . Ballistic Gun 2 | 1 1 . . Ballistic Cannon . | . . . . Launcher 1 | . 1 . . Special Weapon . | . . . . Impact Weapon . | . . . . Slashing Weapon . | . . . . Piercing Weapon . | . . . . Special Melee Weapon . | . . . . Unidentified Prototypes . | . . . . Parts Lost . | . . . . Power . | . . . . Propulsion . | . . . . Utility . | . . . . Weapon . | . . . . Highest Loss Streak . | . . . . Average Slot Usage (%) 99 | . 96 100 100 Engine 25 | . 25 25 25 Treads 25 | . 25 25 25 Device 18 | . 21 25 1 Protection 5 | . . . 23 Ballistic Gun 6 | . 22 . . Launcher 18 | . 2 25 25 Naked Turns . | . . . . Heaviest Build 11 | 5 9 9 11 Greatest Support 20 | 20 20 20 20 Greatest Overweight (x) . | . . . . Average Overweight (x) . | . . . . Largest Inventory Capacity . | . . . . Average Capacity . | . . . . Most Carried . | . . . . Average Carried . | . . . . Final Capacity . | . . . . Final Carried . | . . . . Class Distribution -------------------- 100% | Mutant Dominant Class ---------------- Mutant | -10/Materials Mutant | -10/Mines Mutant | -9/Materials Resources | -11 -10 -10 -9 ----------- Run | Scr Mat Min Mat Matter Collected 394 | 230 75 86 3 Remotely . | . . . . Salvage Created 224 | . 147 . 77 Parts 29 | . 19 . 10 Haulers Intercepted . | . . . . Recyclers Shooed . | . . . . Parts Field Recycled . | . . . . Retrieved Matter . | . . . . Parts Self-Destructed . | . . . . Prevented . | . . . . Kills | -11 -10 -10 -9 ------- Run | Scr Mat Min Mat Combat Hostiles Destroyed 12 | . 7 1 4 Guns 5 | . 5 . . AOE 7 | . 2 1 4 Classes Destroyed 6 | . 4 . 2 Worker 1 | . 1 . . Tunneler 1 | . 1 . . Watcher 2 | . . . 2 Swarmer 4 | . 3 . 1 Grunt 7 | . 4 1 2 Duelist 1 | . . . 1 Best Kill Streak 4 | . 4 1 3 Combat Bots Only 3 | . 2 1 3 Max Kills in Single Turn 2 | . 2 1 1 Gunslinging . | . . . . Exploded 1 | . 1 1 1 Melee . | . . . . Uniques/NPCs Destroyed . | . . . . Combat | -11 -10 -10 -9 -------- Run | Scr Mat Min Mat Damage Taken 844 | . 578 27 239 Core 668 | . 450 20 198 Absorbed by Shields . | . . . . Redirected to Core 553 | . 395 20 138 Core Remaining (%) 65 | 100 . 30 . Volleys Fired 67 | . 52 4 11 Largest 1 | . 1 1 1 Hottest 30 | . 30 30 30 Shots Fired 67 | . 52 4 11 Gun 50 | . 50 . . Cannon . | . . . . Launcher 17 | . 2 4 11 Special . | . . . . Kinetic 50 | . 50 . . Thermal . | . . . . Explosive 17 | . 2 4 11 Electromagnetic . | . . . . Robot Hit Streak 14 | . 10 13 14 Robot Miss Streak 3 | . 3 . 1 Penetration Max . | . . . . Secondary Targets . | . . . . Shots Hit Robots 45 | . 33 3 9 Core Hits 27 | . 13 3 11 Critical Hits . | . . . . Critical Kills . | . . . . Critical Parts Destroyed . | . . . . Melee Attacks . | . . . . Impact . | . . . . Slashing . | . . . . Piercing . | . . . . Sneak Attacks . | . . . . Combat Hostiles . | . . . . Follow-up Attacks . | . . . . Damage Inflicted 819 | . 274 117 428 Guns 149 | . 149 . . Cannons . | . . . . Explosions 670 | . 125 117 428 Melee . | . . . . Ramming . | . . . . Kinetic 149 | . 149 . . Thermal 44 | . 44 . . Explosive 626 | . 81 117 428 Electromagnetic . | . . . . Impact . | . . . . Slashing . | . . . . Piercing . | . . . . Highest Corruption . | . . . . Average Corruption . | . . . . Corruption Purged . | . . . . Overload Shots . | . . . . Overflow Damage . | . . . . Projectiles . | . . . . Explosions . | . . . . Melee . | . . . . Knockbacks . | . . . . Impact . | . . . . Kinetic . | . . . . Secondary . | . . . . Self-Inflicted Damage 187 | . 74 . 113 Shots 6 | . 2 . 4 Rammed . | . . . . Targets Rammed . | . . . . Kicked . | . . . . Crushed . | . . . . Highest Temperature 8 | . . . 8 Average Temperature 4 | . . . 4 Received Heat Transfer 207 | . 168 15 24 Siege Activations . | . . . . Robots Corrupted . | . . . . Combat Hostiles . | . . . . Parts Fried . | . . . . Impact Corruptions . | . . . . Robots Melted . | . . . . Combat Hostiles . | . . . . Parts Melted . | . . . . Heat Transferred 50 | . 50 . . Parts Sabotaged . | . . . . Parts Stolen . | . . . . Parts Stripped . | . . . . Power Chain Reactions . | . . . . Missiles Intercepted . | . . . . Alert | -11 -10 -10 -9 ------- Run | Scr Mat Min Mat Peak Influence 222 | . 210 141 222 Average Influence 92 | . 51 116 139 Maximum Alert Level 1 | . 1 . 1 Low Security (%) 93 | 100 93 100 77 Level 1 6 | . 6 . 22 Level 2 . | . . . . Level 3 . | . . . . Level 4 . | . . . . Level 5 . | . . . . High Security . | . . . . Max Security . | . . . . Squads Dispatched 2 | . 1 . 1 Investigation . | . . . . Extermination . | . . . . Reinforcement 2 | . 1 . 1 Assault . | . . . . Garrison . | . . . . Intercept . | . . . . Construction Impeded . | . . . . Haulers Reinforced . | . . . . Stealth | -11 -10 -10 -9 --------- Run | Scr Mat Min Mat Distress Signals 1 | . 1 . . Communications Jammed . | . . . . Distress Signals . | . . . . Times Spotted 22 | . 9 2 11 Peak Tracking Total 9 | . 3 2 9 Tactical Retreats 2 | . 2 . . Traps | -11 -10 -10 -9 ------- Run | Scr Mat Min Mat Traps Triggered . | . . . . Indirectly . | . . . . Trap Hack Attempts . | . . . . Triggered . | . . . . Disarmed 4 | . . . 4 Reprogrammed . | . . . . Reused . | . . . . Traps Extracted . | . . . . Installed . | . . . . Triggered . | . . . . Machines | -11 -10 -10 -9 ---------- Run | Scr Mat Min Mat Machines Disabled 4 | . 1 2 1 Max in Single Turn 1 | . 1 1 1 Machines Sabotaged . | . . . . Garrisons Compromised . | . . . . Overloaded Fab Kills . | . . . . Fab Network Shutdowns . | . . . . Hacking | -11 -10 -10 -9 --------- Run | Scr Mat Min Mat Machines Accessed 1 | . . . 1 Terminals 1 | . . . 1 Fabricators . | . . . . Repair Stations . | . . . . Recycling Units . | . . . . Scanalyzers . | . . . . Garrison Access . | . . . . Total Hacks 4 | . . . 4 Successful 3 | . . . 3 Failed 1 | . . . 1 Catastrophic . | . . . . Database Lockouts . | . . . . Manual . | . . . . Terminals 4 | . . . 4 Fabricators . | . . . . Repair Stations . | . . . . Recycling Units . | . . . . Scanalyzers . | . . . . Garrison Access . | . . . . Terminal Hacks 3 | . . . 3 Prototype ID Bank 1 | . . . 1 Locate Traps 1 | . . . 1 Disarm Traps 1 | . . . 1 Fabricator Hacks . | . . . . Repair Station Hacks . | . . . . Recycling Unit Hacks . | . . . . Scanalyzer . | . . . . Garrison Access Hacks . | . . . . Unauthorized Hacks . | . . . . Terminals . | . . . . Fabricators . | . . . . Repair Stations . | . . . . Recycling Units . | . . . . Scanalyzers . | . . . . Garrison Access . | . . . . Data Cores Recovered . | . . . . Used . | . . . . Hacking Detections 1 | . . . 1 Full Trace Events 1 | . . . 1 Feedback Events . | . . . . Feedback Blocked . | . . . . Robot Schematics Acquired . | . . . . Robots Built . | . . . . Matter . | . . . . Time . | . . . . Total Robot Build Rating . | . . . . Part Schematics Acquired . | . . . . Parts Built . | . . . . Matter . | . . . . Time . | . . . . Total Part Build Rating . | . . . . Parts Repaired . | . . . . Time . | . . . . Parts Recycled . | . . . . Recycled Matter . | . . . . Retrieved Matter . | . . . . Retrieved Components . | . . . . Parts Scanalyzed . | . . . . Part Schematics Acquired . | . . . . Parts Damaged . | . . . . Bothacking | -11 -10 -10 -9 ------------ Run | Scr Mat Min Mat Used RIF Installer . | . . . . Robots Hacked . | . . . . Non-combat . | . . . . Combat . | . . . . Robot Hacks Applied . | . . . . Relay Couplers Released . | . . . . Robots Rewired . | . . . . Allies Hacked . | . . . . Hacks Repelled . | . . . . Allies | -11 -10 -10 -9 -------- Run | Scr Mat Min Mat Total Allies . | . . . . Largest Group . | . . . . Highest-Rated Group . | . . . . Highest-Rated Ally . | . . . . Total Orders . | . . . . Ally Attacks . | . . . . Total Damage . | . . . . Kills . | . . . . Allies Corrupted . | . . . . Allies Melted . | . . . . Intel | -11 -10 -10 -9 ------- Run | Scr Mat Min Mat Robot Analysis Total . | . . . . Derelict Logs Recovered . | . . . . Drone Launches . | . . . . Drone Recoveries . | . . . . Exploration | -11 -10 -10 -9 ------------- Run | Scr Mat Min Mat Turns Passed 841 | 82 226 357 176 Spaces Moved 445 | 58 74 217 96 Core 13 | 13 . . . Treads 432 | 45 74 217 96 Legs . | . . . . Wheels . | . . . . Hover . | . . . . Flight . | . . . . Fastest Speed 50 | 50 160 160 160 Average Speed 156 | 135 160 160 160 Slowest Speed 160 | 160 160 160 160 Overloaded Moves . | . . . . Propulsion Burnouts . | . . . . Robots Hopped . | . . . . Cave-ins Triggered . | . . . . Exploration Rate (%) 21 | 5 25 41 14 Regions Visited 3 Branch Regions 1 Pre-discovered Areas . | . . . . Known Exits Taken . | . . . . Unknown Exits Taken 3 | 1 1 1 . Scrap Searched 2 | . . 2 . Spaces Dug 18 | . 18 . . Terrain Destroyed 92 | . 21 22 49 Melee . | . . . . Projectile . | . . . . AOE 92 | . 21 22 49 Actions | -11 -10 -10 -9 --------- Run | Scr Mat Min Mat Total 524 | 60 132 223 109 Wait . | . . . . Move 442 | 57 73 216 96 Hop . | . . . . Pick Up . | . . . . Fast Attach 6 | 3 2 . 1 Attach . | . . . . Detach . | . . . . Swap 2 | . 2 . . Drop 4 | . 3 . 1 Fire 67 | . 52 4 11 Melee . | . . . . Ram . | . . . . Kick . | . . . . Crush . | . . . . Escape Stasis . | . . . . Rewire . | . . . . Trap . | . . . . Miscellaneous 3 | . . 3 . Route ------- -11/Scrapyard -10/Materials -10/Mines -9/Materials History --------- Turn | Location | Event 11 | -11/Scrapyard | Discovered new exit (range 15) 83 | -11/Scrapyard | Entered Materials 217 | -10/Materials | Core integrity fell below 50% 295 | -10/Materials | Discovered new exit (range 8) 306 | -10/Materials | Build established: Mutant 309 | -10/Materials | Entered Mines 452 | -10/Mines | Reached level 2 660 | -10/Mines | Discovered new exit (range 3) 666 | -10/Mines | Entered Materials 667 | -9/Materials | Core integrity fell below 50% 668 | -9/Materials | Reached level 3 715 | -9/Materials | Core integrity fell below 20% 842 | -9/Materials | Destroyed self with Grenade Launcher Last Messages --------------- 00753_ T-07 Excavator is excavating. 00766_ The unstable cave ceiling collapses. 00771_ R-06 Scavenger collects Aluminum Leg. 00777_ U-05 Engineer lays Concrete. 00777_ R-06 Scavenger collects Sml. Laser. 00778_ U-05 Engineer lays Concrete. 00784_ U-05 Engineer builds a Wall. 00788_ The unstable cave ceiling collapses. 00790_ U-05 Engineer lays Concrete. 00796_ W-16 Scout destroyed. 00796_ Material Compactor disabled. 00805_ K-01 Serf collects debris. 00818_ W-16 Scout destroyed. 00819_ The unstable cave ceiling collapses. 00820_ K-01 Serf collects debris. 00822_ R-06 Scavenger collects Sensor Array. 00837_ ALERT: Hostiles spotted, dispatching reinforcements to Terminal M010. 00840_ U-05 Engineer lays Concrete. 00842_ S-10 Pest destroyed. Map ----- +----------------------------------------------------+ | ?????????????????????????????????????????????????? | | ?????????????????????????????????????????????????? | | ?????????????????????????????????????????????????? | | ?????????????????????????????????????????????????? | | ?????????????????????????????????????????????????? | | ?????????????????????????? ??????????????????????? | | ?????????????????????????? ??????????????????????? | | ????????????????????? ?????????????????????????? | | ????????????????????? # ???????????????????????? | | ????????????????????# # ???????????????????????? | | ????????????????????+ +????????????????????????? | | ????????????????????# #????????????????????????? | | ????????????????????# #????????????????????????? | | ????????????????????# ##############+####??????? | | ????????????????????# #??????? | | ????????????????????# #??????? | | ????????????????????# ! #??????? | | ????????????????????# !/ ##########?? | | ?????????????"??????# # ??? | | ???????????? """????# " """"" # """ ??? | | ??????????## """ ??# s""""""""" # "R" #?? | | ??????????# # """ """ # " " #?? | | ?????????????""" "" + s + #?? | | ?????????????""" Y" # = # """"" #?? | | ??????????????"" "??#### ########## # """"" #?? | | ????????????? ????# %@ #???# # """"" #?? | | ????????????##??????# """ #??## # ???? | | ????????????????????# """"" #??#T # ###???? | | ????????????????????# r"" "" #??## ##??? | | ????????????????????# "" ##### ###?? | | ????????????????????# " + # #?? | | ????????????????????# ###### # ### | | ????????????????????#! u #????# ## | | ????????????????????## #????# # ## | | ?????????????????????#### r #????#+##### ## | | ?????????????????????????# % ? # # | | ????????????????????????? # # | | ????????????????????????? # ## # | | ???????????????????????? # # | | ???????????????????????? # # + | | ??????????????????????? ## # # # | | ??????????????????????? ?? ?# # ## | | ?????????????????????? ?######?###?# # #? | | ?????????????????????? #????????????# # #? | | ????????????????????? #????????????# # # | | ????????????????????? ?????????????# + | | ??????????????????????? ?????????????# ### | | ???????????????????????? ?????????????######??# | | ?????????????????????????????????????????????????? | | ?????????????????????????????????????????????????? | +----------------------------------------------------+ Best States ------------- Heat Dissipation 35 Energy Generation 10 Energy Capacity 250 Matter Stores 300 Matter Capacity 300 Sight Range 16 Terrain Scan Density 10 Armor Coverage 150 Evasion (%) 50 Recoil Reduction 1 Item Schematics ----------------- None Robot Schematics ------------------ None Fabricated ------------ Nothing Alien Tech Used ----------------- None Achievements -------------- None Challenges ------------ None RPGLIKE | -11 -10 -10 -9 --------- Run | Scr Mat Min Mat Levels Raised 2 | . . 1 1 XP Earned 6820 | 3000 925 800 2095 Upgrades . | . . . . Protomatter Created 136 | . 115 14 7 Integrity Restored 54 | . . 54 . Core 54 | . . 54 . Protomatter Decayed 115 | . 115 . . Game ------ Seed PropulsionLaserSword Manual? 0 Play Time 00:07:35 Cumulative 11.4 hours Start 2019.12.24 @ 15:23:21 End 2019.12.24 @ 15:31:44 Sessions 1 Manual Loads 0 Difficulty Rogue Special Mode Winter2019/RPGLIKE Game No. 27 Rogue 27 Adventurer 0 Explorer 0 Win Type - Total 0 Types 0/0/0/0/0/0/0 Lore% 5 Gallery% 19 Achievement% 12 Wizard Run 0 Options --------- ASCII 0 Keyboard 0 Movement Numpad Keybinds 0 Fullscreen 1 Font 18/SmallcapsGlow Map View 76x50 Tactical HUD 1 Map Filters NONE Filters NONE Steam 1 RUN: 62ee921b-9a6d-4516-b881-ae9baf9510e6